[Event "Early-Titled-Tuesday-Blitz-February-13-2024"]
[Site "Chess.com"]
[Date "2024.02.13"]
[Round "2"]
[White "jakopogi"]
[Black "AlexandraSamaganova"]
[Result "1-0"]
[WhiteElo "2735"]
[BlackElo "2341"]
[TimeControl "180+1"]
[EndTime "8:19:45 PST"]
[Termination "jakopogi won on time"]

1. e4 {[%clk 0:03:00.9]} 1... c5 {[%clk 0:02:56.9]} 2. Nc3 {[%clk 0:02:56.1]}
2... e6 {[%clk 0:02:56.7]} 3. g3 {[%clk 0:02:55.9]} 3... Nc6 {[%clk 0:02:56]} 4.
Bg2 {[%clk 0:02:56.2]} 4... g6 {[%clk 0:02:54.7]} 5. d3 {[%clk 0:02:55.9]} 5...
Bg7 {[%clk 0:02:53.9]} 6. Be3 {[%clk 0:02:56.5]} 6... Nd4 {[%clk 0:02:53.4]} 7.
Qd2 {[%clk 0:02:55.7]} 7... h6 {[%clk 0:02:49.7]} 8. Nd1 {[%clk 0:02:55.3]} 8...
Ne7 {[%clk 0:02:35.9]} 9. c3 {[%clk 0:02:54.1]} 9... Ndc6 {[%clk 0:02:21.7]} 10.
Bxc5 {[%clk 0:02:51.3]} 10... d6 {[%clk 0:02:15.2]} 11. Be3 {[%clk 0:02:50.4]}
11... d5 {[%clk 0:02:12]} 12. Nf3 {[%clk 0:02:43.6]} 12... b6 {[%clk 0:02:04.6]}
13. O-O {[%clk 0:02:38.9]} 13... Bb7 {[%clk 0:02:03.9]} 14. Re1 {[%clk
0:02:33.6]} 14... dxe4 {[%clk 0:01:54.1]} 15. dxe4 {[%clk 0:02:34.5]} 15... Qxd2
{[%clk 0:01:54.3]} 16. Nxd2 {[%clk 0:02:35.4]} 16... O-O {[%clk 0:01:54.5]} 17.
f4 {[%clk 0:02:28.8]} 17... e5 {[%clk 0:01:49.4]} 18. Nf2 {[%clk 0:02:11.3]}
18... Rfd8 {[%clk 0:01:41.3]} 19. Nf3 {[%clk 0:02:07]} 19... Kh7 {[%clk
0:01:31.5]} 20. Red1 {[%clk 0:02:04.1]} 20... Rac8 {[%clk 0:01:26.5]} 21. Ng4
{[%clk 0:02:00.5]} 21... exf4 {[%clk 0:01:19.1]} 22. Bxf4 {[%clk 0:02:01.4]}
22... f5 {[%clk 0:01:18]} 23. exf5 {[%clk 0:01:59.9]} 23... Nxf5 {[%clk
0:01:18.3]} 24. Ne3 {[%clk 0:01:47.2]} 24... Nxe3 {[%clk 0:00:59]} 25. Bxe3
{[%clk 0:01:48.1]} 25... Na5 {[%clk 0:00:57.4]} 26. Rxd8 {[%clk 0:01:22.5]}
26... Rxd8 {[%clk 0:00:55.4]} 27. Nd2 {[%clk 0:01:23.2]} 27... Rd3 {[%clk
0:00:43]} 28. Re1 {[%clk 0:01:22.2]} 28... Bf6 {[%clk 0:00:24.8]} 29. Bxb7
{[%clk 0:01:19.5]} 29... Nxb7 {[%clk 0:00:24.5]} 30. Ne4 {[%clk 0:01:20.3]}
30... Be7 {[%clk 0:00:19.4]} 31. Kf2 {[%clk 0:01:20.4]} 31... Nd6 {[%clk
0:00:15.3]} 32. Ke2 {[%clk 0:01:16.8]} 32... Rd5 {[%clk 0:00:14.1]} 33. Nxd6
{[%clk 0:01:16.2]} 33... Bxd6 {[%clk 0:00:13.5]} 34. Rd1 {[%clk 0:01:16.1]}
34... Rxd1 {[%clk 0:00:11.1]} 35. Kxd1 {[%clk 0:01:17]} 35... h5 {[%clk
0:00:11]} 36. Ke2 {[%clk 0:01:16.5]} 36... h4 {[%clk 0:00:11.1]} 37. Bf4 {[%clk
0:01:06]} 37... Be7 {[%clk 0:00:06]} 38. g4 {[%clk 0:01:06]} 38... Kg7 {[%clk
0:00:05.5]} 39. Kf3 {[%clk 0:01:05.2]} 39... Kf7 {[%clk 0:00:05.9]} 40. Ke4
{[%clk 0:01:05.1]} 40... Ke6 {[%clk 0:00:06.2]} 41. h3 {[%clk 0:01:04.9]} 41...
a6 {[%clk 0:00:05.1]} 42. c4 {[%clk 0:01:03.9]} 42... b5 {[%clk 0:00:05]} 43. b3
{[%clk 0:01:04.4]} 43... bxc4 {[%clk 0:00:05.1]} 44. bxc4 {[%clk 0:01:05.3]}
44... Bd8 {[%clk 0:00:05]} 45. c5 {[%clk 0:01:04.9]} 45... Kd7 {[%clk 0:00:04]}
46. Kd5 {[%clk 0:01:04.8]} 46... Kc8 {[%clk 0:00:03.2]} 47. c6 {[%clk
0:01:04.9]} 47... Bb6 {[%clk 0:00:02.3]} 48. Ke6 {[%clk 0:01:05.2]} 48... Bc7
{[%clk 0:00:01.2]} 49. Bxc7 {[%clk 0:01:04.1]} 49... Kxc7 {[%clk 0:00:02.1]} 50.
Kd5 {[%clk 0:01:04]} 50... g5 {[%clk 0:00:01.7]} 51. Kc5 {[%clk 0:01:04.3]}
51... a5 {[%clk 0:00:01.9]} 52. a4 {[%clk 0:01:04.1]} 52... Kc8 {[%clk 0:00:02]}
53. Kb6 {[%clk 0:01:05]} 53... Kb8 {[%clk 0:00:02.6]} 54. Kxa5 {[%clk
0:01:05.9]} 54... Kc7 {[%clk 0:00:03]} 55. Kb5 {[%clk 0:01:06.8]} 55... Kc8
{[%clk 0:00:03.6]} 56. a5 {[%clk 0:01:07.7]} 1-0

[Event "Early-Titled-Tuesday-Blitz-February-13-2024"]
[Site "Chess.com"]
[Date "2024.02.13"]
[Round "2"]
[White "Grandelicious"]
[Black "Grossboss19"]
[Result "1-0"]
[WhiteElo "2893"]
[BlackElo "2605"]
[TimeControl "180+1"]
[EndTime "8:19:46 PST"]
[Termination "Grandelicious won by checkmate"]

1. e4 {[%clk 0:03:00.9]} 1... c6 {[%clk 0:02:56]} 2. d4 {[%clk 0:02:58.8]} 2...
d5 {[%clk 0:02:56.9]} 3. exd5 {[%clk 0:02:56.5]} 3... cxd5 {[%clk 0:02:56.2]} 4.
Nf3 {[%clk 0:02:57.2]} 4... Nc6 {[%clk 0:02:50.8]} 5. c4 {[%clk 0:02:56.7]} 5...
Bg4 {[%clk 0:02:49.6]} 6. cxd5 {[%clk 0:02:43.5]} 6... Qxd5 {[%clk 0:02:44.6]}
7. Nc3 {[%clk 0:02:36.2]} 7... Qh5 {[%clk 0:02:44.1]} 8. d5 {[%clk 0:02:31.8]}
8... O-O-O {[%clk 0:02:26.3]} 9. Bf4 {[%clk 0:02:05.4]} 9... e5 {[%clk
0:02:16.1]} 10. Be3 {[%clk 0:01:51.7]} 10... e4 {[%clk 0:01:58.8]} 11. Qa4
{[%clk 0:01:32.6]} 11... Nb4 {[%clk 0:01:47]} 12. Rc1 {[%clk 0:01:14.7]} 12...
a6 {[%clk 0:01:37.3]} 13. Nd4 {[%clk 0:00:59.9]} 13... Kb8 {[%clk 0:01:22.8]}
14. a3 {[%clk 0:00:48.5]} 14... Nxd5 {[%clk 0:01:15]} 15. Nxd5 {[%clk
0:00:44.8]} 15... Qxd5 {[%clk 0:01:14.3]} 16. Bxa6 {[%clk 0:00:42.9]} 16... Bc5
{[%clk 0:00:45.4]} 17. Bc4 {[%clk 0:00:38.3]} 17... Qe5 {[%clk 0:00:35.7]} 18.
Qa5 {[%clk 0:00:30.3]} 18... Ne7 {[%clk 0:00:28]} 19. Nc6+ {[%clk 0:00:21.8]}
19... Nxc6 {[%clk 0:00:22]} 20. Qxc5 {[%clk 0:00:22.7]} 20... Qxc5 {[%clk
0:00:17.9]} 21. Bxc5 {[%clk 0:00:23.6]} 21... Be6 {[%clk 0:00:15.4]} 22. Bxe6
{[%clk 0:00:18.7]} 22... fxe6 {[%clk 0:00:16.3]} 23. Ke2 {[%clk 0:00:16]} 23...
Ne5 {[%clk 0:00:15.1]} 24. Be3 {[%clk 0:00:10.9]} 24... Nd3 {[%clk 0:00:11.6]}
25. Rc4 {[%clk 0:00:10]} 25... Nxb2 {[%clk 0:00:10]} 26. Rxe4 {[%clk 0:00:10.3]}
26... Rc8 {[%clk 0:00:08.1]} 27. Rb1 {[%clk 0:00:08.9]} 27... Rc2+ {[%clk
0:00:07.9]} 28. Kf1 {[%clk 0:00:09.6]} 28... Nc4 {[%clk 0:00:06.6]} 29. Bf4+
{[%clk 0:00:05.6]} 29... e5 {[%clk 0:00:04.6]} 30. Bxe5+ {[%clk 0:00:05.6]}
30... Ka8 {[%clk 0:00:05]} 31. Bf4 {[%clk 0:00:05.8]} 31... Rf8 {[%clk
0:00:05.1]} 32. g3 {[%clk 0:00:06.2]} 32... g5 {[%clk 0:00:04.2]} 33. Rb4 {[%clk
0:00:04]} 33... Nxa3 {[%clk 0:00:01.7]} 34. Ra4# {[%clk 0:00:04.2]} 1-0

[Event "Early-Titled-Tuesday-Blitz-February-13-2024"]
[Site "Chess.com"]
[Date "2024.02.13"]
[Round "2"]
[White "HelvertHernandez"]
[Black "amylazy"]
[Result "0-1"]
[WhiteElo "1950"]
[BlackElo "2438"]
[TimeControl "180+1"]
[EndTime "8:19:47 PST"]
[Termination "amylazy won by resignation"]

1. e4 {[%clk 0:03:00.9]} 1... c5 {[%clk 0:01:43.3]} 2. Nf3 {[%clk 0:02:59.4]}
2... e6 {[%clk 0:01:43.2]} 3. d4 {[%clk 0:02:58.5]} 3... cxd4 {[%clk 0:01:43.5]}
4. Nxd4 {[%clk 0:02:58.6]} 4... a6 {[%clk 0:01:44.1]} 5. Bd3 {[%clk 0:02:56.8]}
5... Bc5 {[%clk 0:01:42.7]} 6. Be3 {[%clk 0:02:55.2]} 6... Nf6 {[%clk
0:01:35.4]} 7. O-O {[%clk 0:02:53]} 7... d6 {[%clk 0:01:32.4]} 8. Nc3 {[%clk
0:02:49.7]} 8... Nbd7 {[%clk 0:01:32.6]} 9. f3 {[%clk 0:02:44.3]} 9... O-O
{[%clk 0:01:32.9]} 10. Qd2 {[%clk 0:02:43.4]} 10... Qc7 {[%clk 0:01:27.3]} 11.
Nb3 {[%clk 0:02:41.4]} 11... Bxe3+ {[%clk 0:01:26.8]} 12. Qxe3 {[%clk
0:02:41.4]} 12... Ne5 {[%clk 0:01:27.7]} 13. Kh1 {[%clk 0:02:37.7]} 13... b5
{[%clk 0:01:28]} 14. g4 {[%clk 0:02:36.1]} 14... Bb7 {[%clk 0:01:27.5]} 15. h4
{[%clk 0:02:33.7]} 15... d5 {[%clk 0:01:23.5]} 16. exd5 {[%clk 0:02:29.1]} 16...
Nxd5 {[%clk 0:01:23.6]} 17. Nxd5 {[%clk 0:02:28.3]} 17... Bxd5 {[%clk
0:01:24.5]} 18. Be4 {[%clk 0:02:25.5]} 18... Bxe4 {[%clk 0:01:13.3]} 19. Qxe4
{[%clk 0:02:25.1]} 19... Rac8 {[%clk 0:01:12.4]} 20. c3 {[%clk 0:02:24.3]} 20...
Nc4 {[%clk 0:01:11]} 21. Rf2 {[%clk 0:02:19.5]} 21... Rfd8 {[%clk 0:01:04.6]}
22. Kg2 {[%clk 0:02:14.7]} 22... Qb6 {[%clk 0:01:02.1]} 23. Nd4 {[%clk
0:02:13.1]} 23... b4 {[%clk 0:00:59.4]} 24. Rc1 {[%clk 0:02:00.8]} 24... bxc3
{[%clk 0:00:47.2]} 25. bxc3 {[%clk 0:01:59.7]} 25... e5 {[%clk 0:00:31.1]} 26.
Nf5 {[%clk 0:01:52]} 26... Rc7 {[%clk 0:00:30.3]} 27. h5 {[%clk 0:01:47.9]}
27... h6 {[%clk 0:00:21.3]} 28. g5 {[%clk 0:01:43.2]} 28... hxg5 {[%clk
0:00:20.2]} 29. Rh1 {[%clk 0:01:39]} 29... Nd6 {[%clk 0:00:17.1]} 30. Nxd6
{[%clk 0:01:36.7]} 30... Qxd6 {[%clk 0:00:18]} 31. Qf5 {[%clk 0:01:33.2]} 31...
Qf6 {[%clk 0:00:14.3]} 32. Qg4 {[%clk 0:01:30.9]} 32... Rd3 {[%clk 0:00:12.9]}
33. c4 {[%clk 0:01:26.9]} 33... Rd4 {[%clk 0:00:12.3]} 34. Qg3 {[%clk 0:01:25]}
34... Rcxc4 {[%clk 0:00:11.8]} 35. Rb1 {[%clk 0:01:20.9]} 35... Kh7 {[%clk
0:00:11.6]} 36. Re2 {[%clk 0:01:18.1]} 36... g4 {[%clk 0:00:09.6]} 37. Rxe5
{[%clk 0:01:14]} 37... gxf3+ {[%clk 0:00:09.7]} 38. Kf2 {[%clk 0:01:11.2]} 38...
Rd2+ {[%clk 0:00:08.7]} 39. Ke3 {[%clk 0:01:11]} 39... Qd6 {[%clk 0:00:06.6]}
40. Qg6+ {[%clk 0:01:00.8]} 40... fxg6 {[%clk 0:00:06.4]} 41. hxg6+ {[%clk
0:01:00.7]} 41... Kxg6 {[%clk 0:00:06.4]} 42. Rg1+ {[%clk 0:00:59.4]} 42... Rg2
{[%clk 0:00:06.8]} 43. Rxg2+ {[%clk 0:00:57.9]} 43... fxg2 {[%clk 0:00:07.7]}
44. Re8 {[%clk 0:00:55.1]} 44... Qd4+ {[%clk 0:00:07.2]} 45. Kf3 {[%clk
0:00:54.6]} 45... Rc3+ {[%clk 0:00:06.1]} 46. Kxg2 {[%clk 0:00:54.5]} 46... Qd2+
{[%clk 0:00:06.5]} 47. Kf1 {[%clk 0:00:53.4]} 47... Rc1+ {[%clk 0:00:06.6]} 0-1

[Event "Early-Titled-Tuesday-Blitz-February-13-2024"]
[Site "Chess.com"]
[Date "2024.02.13"]
[Round "2"]
[White "Licancabur"]
[Black "FMJoseHerrera"]
[Result "1-0"]
[WhiteElo "2433"]
[BlackElo "2719"]
[TimeControl "180+1"]
[EndTime "8:19:48 PST"]
[Termination "Licancabur won by resignation"]

1. d4 {[%clk 0:03:00.3]} 1... Nf6 {[%clk 0:02:59.2]} 2. Bg5 {[%clk 0:02:58.3]}
2... c5 {[%clk 0:02:58.8]} 3. Nc3 {[%clk 0:02:57.8]} 3... cxd4 {[%clk
0:02:58.6]} 4. Qxd4 {[%clk 0:02:58.2]} 4... Nc6 {[%clk 0:02:58.5]} 5. Qh4 {[%clk
0:02:58.5]} 5... g6 {[%clk 0:02:58.2]} 6. Bxf6 {[%clk 0:02:53.8]} 6... exf6
{[%clk 0:02:58.2]} 7. O-O-O {[%clk 0:02:52.1]} 7... Bg7 {[%clk 0:02:58.1]} 8. e3
{[%clk 0:02:37.2]} 8... O-O {[%clk 0:02:56.9]} 9. Nf3 {[%clk 0:02:35.7]} 9... b5
{[%clk 0:02:50.5]} 10. Bxb5 {[%clk 0:02:31.1]} 10... Qa5 {[%clk 0:02:49.2]} 11.
Qa4 {[%clk 0:02:28.8]} 11... Qb6 {[%clk 0:02:48.6]} 12. Nd5 {[%clk 0:02:27.6]}
12... Qb8 {[%clk 0:02:46.4]} 13. Bxc6 {[%clk 0:02:13.2]} 13... dxc6 {[%clk
0:02:47.3]} 14. Qxc6 {[%clk 0:02:13.2]} 14... f5 {[%clk 0:02:41.3]} 15. c3
{[%clk 0:01:25.5]} 15... Be6 {[%clk 0:02:41.1]} 16. Nd4 {[%clk 0:01:20.9]} 16...
Bxd5 {[%clk 0:02:29.8]} 17. Qxd5 {[%clk 0:01:20.2]} 17... Qb6 {[%clk 0:02:30]}
18. Qb3 {[%clk 0:01:11.6]} 18... Qa6 {[%clk 0:02:28]} 19. Qa3 {[%clk 0:01:00.5]}
19... Qf6 {[%clk 0:02:26.5]} 20. h4 {[%clk 0:00:54.6]} 20... h5 {[%clk
0:02:25.2]} 21. Rd2 {[%clk 0:00:54.2]} 21... a5 {[%clk 0:02:25]} 22. Rhd1 {[%clk
0:00:54]} 22... Qxh4 {[%clk 0:02:24.3]} 23. g3 {[%clk 0:00:52.1]} 23... Qf6
{[%clk 0:02:23.5]} 24. Nb5 {[%clk 0:00:47.4]} 24... a4 {[%clk 0:02:22.8]} 25.
Rd6 {[%clk 0:00:43.4]} 25... Qg5 {[%clk 0:02:22.9]} 26. Nc7 {[%clk 0:00:31.9]}
26... Ra7 {[%clk 0:02:22.5]} 27. Nd5 {[%clk 0:00:30.9]} 27... Rb8 {[%clk
0:02:21.1]} 28. Qc5 {[%clk 0:00:25.3]} 28... Rab7 {[%clk 0:02:21.4]} 29. Rd2
{[%clk 0:00:23.9]} 29... Bf8 {[%clk 0:02:20.8]} 30. Qc6 {[%clk 0:00:14.5]} 30...
Bxd6 {[%clk 0:02:15.3]} 31. Qxd6 {[%clk 0:00:14.5]} 31... Kg7 {[%clk 0:02:15.7]}
32. Qe5+ {[%clk 0:00:14.1]} 32... f6 {[%clk 0:02:16.2]} 33. Qd6 {[%clk
0:00:13.6]} 33... Qg4 {[%clk 0:02:16.5]} 34. Nf4 {[%clk 0:00:13.1]} 34... Qf3
{[%clk 0:02:13.6]} 35. Qe6 {[%clk 0:00:12.2]} 35... Rf7 {[%clk 0:02:02.2]} 36.
Rd7 {[%clk 0:00:11.8]} 36... Rf8 {[%clk 0:02:01.9]} 37. Rxf7+ {[%clk 0:00:11.5]}
37... Rxf7 {[%clk 0:02:02.8]} 38. Qc4 {[%clk 0:00:11.6]} 38... Qxf2 {[%clk
0:02:01.3]} 39. Ne6+ {[%clk 0:00:12]} 39... Kh7 {[%clk 0:02:01.5]} 40. Nf4
{[%clk 0:00:12.2]} 40... Qxe3+ {[%clk 0:02:01.2]} 41. Kc2 {[%clk 0:00:12.5]}
41... Rd7 {[%clk 0:01:53.9]} 42. a3 {[%clk 0:00:11.8]} 42... Qe4+ {[%clk
0:01:51]} 43. Qxe4 {[%clk 0:00:11.5]} 43... fxe4 {[%clk 0:01:51.9]} 44. Ne6
{[%clk 0:00:11.3]} 44... f5 {[%clk 0:01:46]} 45. Nf8+ {[%clk 0:00:11.4]} 45...
Kh6 {[%clk 0:01:43.7]} 46. Nxd7 {[%clk 0:00:12.3]} 46... Kg5 {[%clk 0:01:44.6]}
47. Kd2 {[%clk 0:00:13.1]} 47... Kg4 {[%clk 0:01:45.5]} 48. Ne5+ {[%clk
0:00:12.7]} 48... Kxg3 {[%clk 0:01:46.4]} 49. Nxg6 {[%clk 0:00:12.2]} 49... f4
{[%clk 0:01:46.5]} 50. c4 {[%clk 0:00:11.8]} 50... e3+ {[%clk 0:01:47]} 51. Ke2
{[%clk 0:00:11.6]} 51... f3+ {[%clk 0:01:47.5]} 52. Kxe3 {[%clk 0:00:11.7]}
52... f2 {[%clk 0:01:48.4]} 53. Ke2 {[%clk 0:00:12.1]} 53... h4 {[%clk
0:01:48.2]} 54. Nxh4 {[%clk 0:00:11.7]} 54... Kxh4 {[%clk 0:01:08.3]} 55. c5
{[%clk 0:00:11.2]} 55... Kg5 {[%clk 0:01:09.2]} 56. c6 {[%clk 0:00:10]} 1-0

[Event "Early-Titled-Tuesday-Blitz-February-13-2024"]
[Site "Chess.com"]
[Date "2024.02.13"]
[Round "2"]
[White "Durarbayli"]
[Black "Iskusnyh"]
[Result "0-1"]
[WhiteElo "2926"]
[BlackElo "2650"]
[TimeControl "180+1"]
[EndTime "8:19:50 PST"]
[Termination "Iskusnyh won on time"]

1. e4 {[%clk 0:03:00.9]} 1... e6 {[%clk 0:02:59.4]} 2. d4 {[%clk 0:03:00.6]}
2... d5 {[%clk 0:02:56.9]} 3. Nc3 {[%clk 0:03:00.4]} 3... Nf6 {[%clk 0:02:56.2]}
4. e5 {[%clk 0:03:00.4]} 4... Nfd7 {[%clk 0:02:54.9]} 5. f4 {[%clk 0:03:01.1]}
5... c5 {[%clk 0:02:55.4]} 6. Nf3 {[%clk 0:03:01.7]} 6... Nc6 {[%clk 0:02:54.5]}
7. Be3 {[%clk 0:03:02.2]} 7... Rb8 {[%clk 0:02:52.7]} 8. a3 {[%clk 0:02:56.6]}
8... cxd4 {[%clk 0:02:47.6]} 9. Nxd4 {[%clk 0:02:56.4]} 9... Bc5 {[%clk
0:02:47.6]} 10. Qd2 {[%clk 0:02:51.8]} 10... O-O {[%clk 0:02:44.7]} 11. O-O-O
{[%clk 0:02:37.9]} 11... a6 {[%clk 0:02:37.1]} 12. h4 {[%clk 0:02:21.2]} 12...
Bxd4 {[%clk 0:02:34.5]} 13. Bxd4 {[%clk 0:02:22.1]} 13... b5 {[%clk 0:02:34.8]}
14. Ne2 {[%clk 0:02:00]} 14... b4 {[%clk 0:02:28.7]} 15. axb4 {[%clk 0:01:51.2]}
15... Rxb4 {[%clk 0:02:24.4]} 16. Bc3 {[%clk 0:01:49.9]} 16... Rb8 {[%clk
0:01:49.5]} 17. Nd4 {[%clk 0:01:50.1]} 17... Qc7 {[%clk 0:01:44.3]} 18. f5
{[%clk 0:01:26.1]} 18... Nc5 {[%clk 0:01:35.4]} 19. Nxc6 {[%clk 0:01:22.5]}
19... Qxc6 {[%clk 0:01:32.2]} 20. f6 {[%clk 0:01:01.4]} 20... Ne4 {[%clk
0:01:29]} 21. Qd4 {[%clk 0:00:50.9]} 21... Bd7 {[%clk 0:01:11.5]} 22. Bd3 {[%clk
0:00:50]} 22... Nxc3 {[%clk 0:01:02.1]} 23. bxc3 {[%clk 0:00:45.7]} 23... Qb6
{[%clk 0:01:01.6]} 24. Rhf1 {[%clk 0:00:34.7]} 24... Rfc8 {[%clk 0:00:51.1]} 25.
Kd2 {[%clk 0:00:25.1]} 25... Bb5 {[%clk 0:00:26.3]} 26. fxg7 {[%clk 0:00:08]}
26... Bxd3 {[%clk 0:00:24.4]} 27. Qxb6 {[%clk 0:00:08.2]} 27... Rxb6 {[%clk
0:00:24]} 28. cxd3 {[%clk 0:00:07.4]} 28... Rb2+ {[%clk 0:00:24.1]} 29. Ke3
{[%clk 0:00:07.9]} 29... Rxc3 {[%clk 0:00:22.5]} 30. Rc1 {[%clk 0:00:05]} 30...
Rxc1 {[%clk 0:00:20.6]} 31. Rxc1 {[%clk 0:00:05.9]} 31... Rxg2 {[%clk
0:00:20.7]} 32. Ra1 {[%clk 0:00:03.3]} 32... Rh2 {[%clk 0:00:19.7]} 33. Ra4
{[%clk 0:00:02.8]} 33... Kxg7 {[%clk 0:00:18.5]} 34. Kf3 {[%clk 0:00:03]} 34...
h5 {[%clk 0:00:14.5]} 35. Kg3 {[%clk 0:00:02]} 35... Rd2 {[%clk 0:00:14.3]} 36.
d4 {[%clk 0:00:01.5]} 36... Kg6 {[%clk 0:00:14.2]} 37. Kf4 {[%clk 0:00:01.9]}
37... Rd3 {[%clk 0:00:13]} 0-1

[Event "Early-Titled-Tuesday-Blitz-February-13-2024"]
[Site "Chess.com"]
[Date "2024.02.13"]
[Round "2"]
[White "bancsoo"]
[Black "Alex_Banzea"]
[Result "1-0"]
[WhiteElo "2909"]
[BlackElo "2614"]
[TimeControl "180+1"]
[EndTime "8:19:50 PST"]
[Termination "bancsoo won by resignation"]

1. Nf3 {[%clk 0:03:00.9]} 1... Nf6 {[%clk 0:03:00.5]} 2. g3 {[%clk 0:03:01.1]}
2... g6 {[%clk 0:03:01]} 3. Bg2 {[%clk 0:03:01.2]} 3... Bg7 {[%clk 0:03:01.7]}
4. d4 {[%clk 0:03:01.9]} 4... O-O {[%clk 0:03:01.9]} 5. c4 {[%clk 0:03:02.5]}
5... d6 {[%clk 0:03:02.5]} 6. Nc3 {[%clk 0:03:02.7]} 6... Nc6 {[%clk 0:03:03.1]}
7. O-O {[%clk 0:03:02.9]} 7... e5 {[%clk 0:03:03.7]} 8. dxe5 {[%clk 0:03:03.5]}
8... dxe5 {[%clk 0:03:04.3]} 9. Be3 {[%clk 0:03:03.9]} 9... Be6 {[%clk
0:02:58.1]} 10. Qa4 {[%clk 0:03:03.8]} 10... Qc8 {[%clk 0:02:58.4]} 11. Rad1
{[%clk 0:03:02.3]} 11... Bh3 {[%clk 0:02:57.3]} 12. Nd5 {[%clk 0:03:01.6]} 12...
Bxg2 {[%clk 0:02:55]} 13. Kxg2 {[%clk 0:03:01.7]} 13... Re8 {[%clk 0:02:54]} 14.
b4 {[%clk 0:02:58.7]} 14... e4 {[%clk 0:02:52.6]} 15. Nd4 {[%clk 0:02:33.2]}
15... Ne5 {[%clk 0:02:40.2]} 16. Qb3 {[%clk 0:02:18.4]} 16... c6 {[%clk
0:02:39.1]} 17. Nxf6+ {[%clk 0:02:17.2]} 17... Bxf6 {[%clk 0:02:40]} 18. Bf4
{[%clk 0:02:15.7]} 18... Bg7 {[%clk 0:02:33.5]} 19. c5 {[%clk 0:02:12.5]} 19...
a5 {[%clk 0:02:25.3]} 20. b5 {[%clk 0:02:12.6]} 20... Nd3 {[%clk 0:02:18.5]} 21.
exd3 {[%clk 0:02:02.1]} 21... Bxd4 {[%clk 0:02:19]} 22. Qc4 {[%clk 0:01:54.6]}
22... Be5 {[%clk 0:02:02.5]} 23. Be3 {[%clk 0:01:36.8]} 23... cxb5 {[%clk
0:01:41.8]} 24. Qxb5 {[%clk 0:01:36.6]} 24... exd3 {[%clk 0:01:37.1]} 25. Rxd3
{[%clk 0:01:37.5]} 25... h5 {[%clk 0:01:22.1]} 26. Rd7 {[%clk 0:01:33.4]} 26...
Qc6+ {[%clk 0:01:09.1]} 27. Qxc6 {[%clk 0:01:33.5]} 27... bxc6 {[%clk 0:01:10]}
28. Rb1 {[%clk 0:01:33.7]} 28... Reb8 {[%clk 0:00:34.5]} 29. Rb6 {[%clk
0:01:31.5]} 29... a4 {[%clk 0:00:26.8]} 30. Re7 {[%clk 0:01:06.6]} 30... Bf6
{[%clk 0:00:20.7]} 31. Rc7 {[%clk 0:01:06.3]} 31... a3 {[%clk 0:00:09.1]} 32.
Rcxc6 {[%clk 0:01:05.4]} 32... Bg7 {[%clk 0:00:03.7]} 33. Rxb8+ {[%clk
0:01:02.2]} 33... Rxb8 {[%clk 0:00:04.6]} 34. Ra6 {[%clk 0:01:02.7]} 34... Bb2
{[%clk 0:00:03.3]} 35. c6 {[%clk 0:01:03]} 35... Rc8 {[%clk 0:00:03.5]} 36. Bf4
{[%clk 0:00:59.6]} 36... f6 {[%clk 0:00:02.9]} 37. h4 {[%clk 0:00:41.1]} 37...
Kf7 {[%clk 0:00:03.8]} 38. Kf3 {[%clk 0:00:29.5]} 38... Ke6 {[%clk 0:00:04.7]}
39. Ke4 {[%clk 0:00:29.9]} 39... Be5 {[%clk 0:00:02.4]} 40. Bxe5 {[%clk
0:00:23.3]} 40... fxe5 {[%clk 0:00:03.3]} 41. c7+ {[%clk 0:00:23.1]} 41... Kf7
{[%clk 0:00:03.3]} 42. Rc6 {[%clk 0:00:20.9]} 1-0

[Event "Early-Titled-Tuesday-Blitz-February-13-2024"]
[Site "Chess.com"]
[Date "2024.02.13"]
[Round "2"]
[White "GMBenjaminBok"]
[Black "Roman_Ovetchkin"]
[Result "1-0"]
[WhiteElo "2960"]
[BlackElo "2640"]
[TimeControl "180+1"]
[EndTime "8:19:51 PST"]
[Termination "GMBenjaminBok won by resignation"]

1. d4 {[%clk 0:03:00.9]} 1... Nf6 {[%clk 0:02:59.2]} 2. c4 {[%clk 0:03:01.2]}
2... c5 {[%clk 0:02:59.3]} 3. Nf3 {[%clk 0:03:00.8]} 3... cxd4 {[%clk
0:02:57.9]} 4. Nxd4 {[%clk 0:03:01.7]} 4... Qc7 {[%clk 0:02:50.8]} 5. Nc3 {[%clk
0:02:51.1]} 5... a6 {[%clk 0:02:46.7]} 6. e4 {[%clk 0:02:48.5]} 6... e6 {[%clk
0:02:46.3]} 7. Be2 {[%clk 0:02:42.6]} 7... Nc6 {[%clk 0:02:36.5]} 8. O-O {[%clk
0:02:21.8]} 8... Bd6 {[%clk 0:02:28.7]} 9. h3 {[%clk 0:02:16]} 9... Bh2+ {[%clk
0:02:19.3]} 10. Kh1 {[%clk 0:02:14.8]} 10... Nxd4 {[%clk 0:02:14.1]} 11. Qxd4
{[%clk 0:02:15.7]} 11... Be5 {[%clk 0:02:13.6]} 12. Qd3 {[%clk 0:02:16.4]} 12...
b6 {[%clk 0:02:00.4]} 13. Be3 {[%clk 0:01:49.6]} 13... Bb7 {[%clk 0:01:57.5]}
14. Bd4 {[%clk 0:01:43]} 14... O-O {[%clk 0:01:35.3]} 15. Bxe5 {[%clk
0:01:39.3]} 15... Qxe5 {[%clk 0:01:34.8]} 16. f4 {[%clk 0:01:40]} 16... Qc7
{[%clk 0:01:28.5]} 17. e5 {[%clk 0:01:40.6]} 17... Ne8 {[%clk 0:01:28]} 18. Rad1
{[%clk 0:01:41.3]} 18... Rd8 {[%clk 0:01:22.6]} 19. Bf3 {[%clk 0:00:52.8]} 19...
Bxf3 {[%clk 0:01:10.2]} 20. Rxf3 {[%clk 0:00:53.7]} 20... f6 {[%clk 0:01:02.6]}
21. Rdf1 {[%clk 0:00:30.2]} 21... d6 {[%clk 0:00:40.9]} 22. exf6 {[%clk
0:00:29]} 22... Nxf6 {[%clk 0:00:36.9]} 23. Re1 {[%clk 0:00:28.1]} 23... Rfe8
{[%clk 0:00:30.2]} 24. Rfe3 {[%clk 0:00:26.5]} 24... Qf7 {[%clk 0:00:16.7]} 25.
b3 {[%clk 0:00:26.1]} 25... h6 {[%clk 0:00:15.4]} 26. Qd4 {[%clk 0:00:23.2]}
26... b5 {[%clk 0:00:08.4]} 27. cxb5 {[%clk 0:00:20.3]} 27... axb5 {[%clk
0:00:09.3]} 28. Nxb5 {[%clk 0:00:20.9]} 28... d5 {[%clk 0:00:09.8]} 29. Nc3
{[%clk 0:00:18.6]} 29... Nh5 {[%clk 0:00:09.6]} 30. Rf3 {[%clk 0:00:14.7]} 30...
g6 {[%clk 0:00:09.1]} 31. a4 {[%clk 0:00:14]} 31... Ng7 {[%clk 0:00:09.4]} 32.
Kh2 {[%clk 0:00:11.8]} 32... Nf5 {[%clk 0:00:09.8]} 33. Qe5 {[%clk 0:00:12]}
33... h5 {[%clk 0:00:10.2]} 34. Nb5 {[%clk 0:00:09.5]} 34... h4 {[%clk
0:00:10.3]} 35. Rc3 {[%clk 0:00:08.2]} 35... Qg7 {[%clk 0:00:09.6]} 36. Qxg7+
{[%clk 0:00:06]} 36... Kxg7 {[%clk 0:00:10.5]} 37. Nc7 {[%clk 0:00:06.3]} 1-0